[Event "Titled Tuesday Blitz May 30 Early 2023"]
[White "Duda, Jan-Krzysztof"]
[Black "Ioannidis, Evgenios"]
[WhiteFideId "1170546"]
[BlackFideId "4229274"]
[WhiteElo "2790"]
[BlackElo "2386"]
[Result "1-0"]
[Round "03"]
[TimeControl "180+2"]
[Date "2023.05.30"]
[WhiteClock "0:00:11"]
[BlackClock "0:00:00"]

1. e4 {[%clk 0:03:00]}  e5 {[%clk 0:02:58]} 2. Nf3 {[%clk 0:03:01]}  Nc6 {[%clk 0:02:59]} 3. Nc3 {[%clk 0:03:00]}  Nf6 {[%clk 0:02:59]} 4. d4 {[%clk 0:03:00]}  exd4 {[%clk 0:02:59]} 5. Nxd4 {[%clk 0:03:01]}  Bb4 {[%clk 0:02:59]} 6. Nxc6 {[%clk 0:03:02]}  bxc6 {[%clk 0:03:00]} 7. Bd3 {[%clk 0:03:02]}  d5 {[%clk 0:03:00]} 8. exd5 {[%clk 0:03:01]}  O-O {[%clk 0:03:01]} 9. O-O {[%clk 0:03:02]}  Bg4 {[%clk 0:03:01]} 10. f3 {[%clk 0:03:01]}  Bh5 {[%clk 0:03:01]} 11. Bg5 {[%clk 0:02:55]}  Qd6 {[%clk 0:03:01]} 12. Bxf6 {[%clk 0:02:44]}  Qxf6 {[%clk 0:03:00]} 13. Ne4 {[%clk 0:02:41]}  Qd4+ {[%clk 0:02:56]} 14. Kh1 {[%clk 0:02:41]}  Qxd5 {[%clk 0:02:56]} 15. a3 {[%clk 0:02:36]}  Bd6 {[%clk 0:02:51]} 16. Nxd6 {[%clk 0:02:20]}  Qxd6 {[%clk 0:02:36]} 17. Be4 {[%clk 0:02:20]}  Rfd8 {[%clk 0:02:33]} 18. Qxd6 {[%clk 0:01:43]}  Rxd6 {[%clk 0:02:32]} 19. Kg1 {[%clk 0:01:44]}  Rad8 {[%clk 0:02:29]} 20. Rae1 {[%clk 0:01:43]}  Bg6 {[%clk 0:02:23]} 21. g3 {[%clk 0:01:39]}  Kf8 {[%clk 0:02:13]} 22. Bxg6 {[%clk 0:01:39]}  hxg6 {[%clk 0:02:13]} 23. h4 {[%clk 0:01:39]}  c5 {[%clk 0:02:12]} 24. Re5 {[%clk 0:01:28]}  Rd5 {[%clk 0:02:10]} 25. Rfe1 {[%clk 0:01:27]}  c4 {[%clk 0:01:59]} 26. Kf2 {[%clk 0:01:17]}  c6 {[%clk 0:01:40]} 27. R5e4 {[%clk 0:01:09]}  Rc5 {[%clk 0:01:28]} 28. c3 {[%clk 0:00:54]}  Rd2+ {[%clk 0:01:16]} 29. R1e2 {[%clk 0:00:52]}  Rxe2+ {[%clk 0:01:16]} 30. Kxe2 {[%clk 0:00:31]}  Rb5 {[%clk 0:01:16]} 31. Rxc4 {[%clk 0:00:31]}  Rxb2+ {[%clk 0:01:16]} 32. Kd3 {[%clk 0:00:31]}  Rb6 {[%clk 0:01:16]} 33. Ra4 {[%clk 0:00:29]}  Rb7 {[%clk 0:01:02]} 34. Ra6 {[%clk 0:00:27]}  Rc7 {[%clk 0:01:02]} 35. Kd4 {[%clk 0:00:26]}  Ke7 {[%clk 0:01:02]} 36. Kc5 {[%clk 0:00:26]}  Kd7 {[%clk 0:01:02]} 37. a4 {[%clk 0:00:25]}  Rb7 {[%clk 0:00:40]} 38. g4 {[%clk 0:00:23]}  f6 {[%clk 0:00:29]} 39. c4 {[%clk 0:00:17]}  Rc7 {[%clk 0:00:23]} 40. g5 {[%clk 0:00:17]}  Rb7 {[%clk 0:00:08]} 41. Rxc6 {[%clk 0:00:14]}  Ke7 {[%clk 0:00:09]} 42. a5 {[%clk 0:00:11]}  Rb3 {[%clk 0:00:03]} 43. Rc7+ {[%clk 0:00:11]}  Ke6 {[%clk 0:00:00]} 44. Rxg7 {[%clk 0:00:11]} 1-0


[Site "https://www.chess.com"]

[Event "Titled Tuesday Blitz May 30 Early 2023"]
[White "Prohaszka, Peter"]
[Black "Dubov, Daniil"]
[WhiteFideId "726265"]
[BlackFideId "24126055"]
[WhiteElo "2626"]
[BlackElo "2793"]
[Result "0-1"]
[Round "03"]
[TimeControl "180+2"]
[Date "2023.05.30"]
[WhiteClock "0:00:00"]
[BlackClock "0:00:06"]

1. d4 {[%clk 0:03:00]}  Nf6 {[%clk 0:02:57]} 2. Nf3 {[%clk 0:02:59]}  d5 {[%clk 0:02:55]} 3. c3 {[%clk 0:02:57]}  g6 {[%clk 0:02:51]} 4. Bg5 {[%clk 0:02:52]}  Bg7 {[%clk 0:02:50]} 5. Nbd2 {[%clk 0:02:52]}  O-O {[%clk 0:02:50]} 6. e3 {[%clk 0:02:53]}  Nbd7 {[%clk 0:02:50]} 7. Be2 {[%clk 0:02:34]}  Re8 {[%clk 0:02:48]} 8. O-O {[%clk 0:02:32]}  e5 {[%clk 0:02:47]} 9. h3 {[%clk 0:02:32]}  a5 {[%clk 0:02:47]} 10. a4 {[%clk 0:02:32]}  c6 {[%clk 0:02:46]} 11. Qb3 {[%clk 0:02:29]}  Qe7 {[%clk 0:02:40]} 12. Bh4 {[%clk 0:02:29]}  exd4 {[%clk 0:02:19]} 13. cxd4 {[%clk 0:02:27]}  Nf8 {[%clk 0:02:12]} 14. Qa3 {[%clk 0:01:52]}  Qxa3 {[%clk 0:02:02]} 15. Rxa3 {[%clk 0:01:53]}  Ne6 {[%clk 0:01:56]} 16. Rb1 {[%clk 0:01:30]}  Nd7 {[%clk 0:01:35]} 17. Bg3 {[%clk 0:01:09]}  Nxd4 {[%clk 0:01:29]} 18. Nxd4 {[%clk 0:00:52]}  Bxd4 {[%clk 0:01:28]} 19. exd4 {[%clk 0:00:49]}  Rxe2 {[%clk 0:01:28]} 20. Nf1 {[%clk 0:00:29]}  Nb6 {[%clk 0:01:02]} 21. Ne3 {[%clk 0:00:10]}  Nc4 {[%clk 0:00:57]} 22. Nxc4 {[%clk 0:00:04]}  dxc4 {[%clk 0:00:58]} 23. Re3 {[%clk 0:00:04]}  Rxe3 {[%clk 0:00:56]} 24. fxe3 {[%clk 0:00:05]}  Bf5 {[%clk 0:00:50]} 25. Ra1 {[%clk 0:00:05]}  b5 {[%clk 0:00:47]} 26. axb5 {[%clk 0:00:02]}  cxb5 {[%clk 0:00:47]} 27. Be1 {[%clk 0:00:03]}  a4 {[%clk 0:00:43]} 28. Bb4 {[%clk 0:00:03]}  Be4 {[%clk 0:00:43]} 29. Kf2 {[%clk 0:00:04]}  f6 {[%clk 0:00:42]} 30. g4 {[%clk 0:00:04]}  Kf7 {[%clk 0:00:42]} 31. Kg3 {[%clk 0:00:04]}  g5 {[%clk 0:00:38]} 32. Kf2 {[%clk 0:00:04]}  h5 {[%clk 0:00:37]} 33. gxh5 {[%clk 0:00:04]}  Rh8 {[%clk 0:00:36]} 34. Kg3 {[%clk 0:00:04]}  Rxh5 {[%clk 0:00:36]} 35. Rf1 {[%clk 0:00:05]}  Ke6 {[%clk 0:00:35]} 36. Rf2 {[%clk 0:00:05]}  Rh7 {[%clk 0:00:29]} 37. Rh2 {[%clk 0:00:05]}  Rh4 {[%clk 0:00:24]} 38. Rf2 {[%clk 0:00:05]}  Bd5 {[%clk 0:00:21]} 39. Rh2 {[%clk 0:00:05]}  Re4 {[%clk 0:00:21]} 40. Kf2 {[%clk 0:00:05]}  Bc6 {[%clk 0:00:19]} 41. Bc3 {[%clk 0:00:05]}  Kd5 {[%clk 0:00:19]} 42. Bb4 {[%clk 0:00:05]}  Bd7 {[%clk 0:00:20]} 43. Bc3 {[%clk 0:00:04]}  Be6 {[%clk 0:00:20]} 44. Bb4 {[%clk 0:00:04]}  Rh4 {[%clk 0:00:20]} 45. Kg3 {[%clk 0:00:04]}  Ke4 {[%clk 0:00:20]} 46. Rh1 {[%clk 0:00:03]}  Bd5 {[%clk 0:00:16]} 47. Rf1 {[%clk 0:00:03]}  f5 {[%clk 0:00:15]} 48. Re1 {[%clk 0:00:03]}  Kd3 {[%clk 0:00:14]} 49. Ba3 {[%clk 0:00:03]}  Kc2 {[%clk 0:00:14]} 50. Re2+ {[%clk 0:00:03]}  Kb3 {[%clk 0:00:14]} 51. Bc5 {[%clk 0:00:03]}  b4 {[%clk 0:00:14]} 52. Rf2 {[%clk 0:00:04]}  Be4 {[%clk 0:00:10]} 53. d5 {[%clk 0:00:04]}  Bxd5 {[%clk 0:00:09]} 54. Rxf5 {[%clk 0:00:04]}  Be6 {[%clk 0:00:10]} 55. Rxg5 {[%clk 0:00:04]}  Rxh3+ {[%clk 0:00:11]} 56. Kf4 {[%clk 0:00:05]}  c3 {[%clk 0:00:10]} 57. bxc3 {[%clk 0:00:05]}  Kxc3 {[%clk 0:00:09]} 58. Rg7 {[%clk 0:00:05]}  b3 {[%clk 0:00:08]} 59. Rc7 {[%clk 0:00:05]}  Kd3 {[%clk 0:00:08]} 60. Bd4 {[%clk 0:00:05]}  Rh4+ {[%clk 0:00:07]} 61. Ke5 {[%clk 0:00:06]}  Bc4 {[%clk 0:00:07]} 62. Rd7 {[%clk 0:00:05]}  Kc2 {[%clk 0:00:07]} 63. Rc7 {[%clk 0:00:05]}  Kd3 {[%clk 0:00:07]} 64. Rd7 {[%clk 0:00:06]}  Ke2 {[%clk 0:00:05]} 65. Rc7 {[%clk 0:00:05]}  Rxd4 {[%clk 0:00:05]} 66. Kxd4 {[%clk 0:00:05]}  b2 {[%clk 0:00:05]} 67. Rxc4 {[%clk 0:00:00]}  b1=Q {[%clk 0:00:06]} 0-1


[Site "https://www.chess.com"]

[Event "Titled Tuesday Blitz May 30 Early 2023"]
[White "Danielyan, Vahe"]
[Black "Kramnik, Vladimir"]
[WhiteFideId "13304828"]
[BlackFideId "4101588"]
[WhiteElo "2423"]
[BlackElo "2703"]
[Result "0-1"]
[Round "03"]
[TimeControl "180+2"]
[Date "2023.05.30"]
[WhiteClock "0:00:00"]
[BlackClock "0:00:50"]

1. e4 {[%clk 0:03:00]}  c5 {[%clk 0:02:59]} 2. Nc3 {[%clk 0:02:57]}  e6 {[%clk 0:02:59]} 3. Nf3 {[%clk 0:02:56]}  Nc6 {[%clk 0:02:58]} 4. Bb5 {[%clk 0:02:56]}  Nd4 {[%clk 0:02:56]} 5. O-O {[%clk 0:02:56]}  a6 {[%clk 0:02:49]} 6. Bd3 {[%clk 0:02:57]}  Nc6 {[%clk 0:02:45]} 7. a3 {[%clk 0:02:53]}  Qc7 {[%clk 0:02:42]} 8. Re1 {[%clk 0:02:46]}  d6 {[%clk 0:02:30]} 9. b4 {[%clk 0:02:12]}  Be7 {[%clk 0:02:10]} 10. Bb2 {[%clk 0:02:04]}  Nf6 {[%clk 0:02:01]} 11. bxc5 {[%clk 0:01:18]}  dxc5 {[%clk 0:02:01]} 12. Qe2 {[%clk 0:01:04]}  b5 {[%clk 0:01:44]} 13. e5 {[%clk 0:01:01]}  Nd5 {[%clk 0:01:41]} 14. Nxd5 {[%clk 0:00:59]}  exd5 {[%clk 0:01:41]} 15. e6 {[%clk 0:00:51]}  Bxe6 {[%clk 0:01:40]} 16. Bxg7 {[%clk 0:00:51]}  Rg8 {[%clk 0:01:40]} 17. Bh6 {[%clk 0:00:43]}  c4 {[%clk 0:01:29]} 18. Bxh7 {[%clk 0:00:19]}  Rh8 {[%clk 0:01:29]} 19. Ng5 {[%clk 0:00:19]}  Bxg5 {[%clk 0:01:26]} 20. Bxg5 {[%clk 0:00:20]}  Rxh7 {[%clk 0:01:25]} 21. g3 {[%clk 0:00:20]}  Nd4 {[%clk 0:01:13]} 22. Qd1 {[%clk 0:00:17]}  Kd7 {[%clk 0:01:09]} 23. c3 {[%clk 0:00:14]}  Rg8 {[%clk 0:01:05]} 24. h4 {[%clk 0:00:13]}  f6 {[%clk 0:00:56]} 25. Be3 {[%clk 0:00:00]}  Rxg3+ {[%clk 0:00:50]} 0-1


[Site "https://www.chess.com"]

[Event "Titled Tuesday Blitz May 30 Early 2023"]
[White "Deac, Bogdan-Daniel"]
[Black "Kucuksari, Kaan"]
[WhiteFideId "1226380"]
[BlackFideId "6380166"]
[WhiteElo "2649"]
[BlackElo "2364"]
[Result "1-0"]
[Round "03"]
[TimeControl "180+2"]
[Date "2023.05.30"]
[WhiteClock "0:00:04"]
[BlackClock "0:00:00"]

1. g3 {[%clk 0:02:57]}  d5 {[%clk 0:02:58]} 2. Bg2 {[%clk 0:02:57]}  Nf6 {[%clk 0:02:58]} 3. d3 {[%clk 0:02:57]}  e5 {[%clk 0:02:50]} 4. Nd2 {[%clk 0:02:57]}  Be7 {[%clk 0:02:43]} 5. e4 {[%clk 0:02:52]}  d4 {[%clk 0:02:28]} 6. Ne2 {[%clk 0:02:42]}  Nc6 {[%clk 0:02:18]} 7. f4 {[%clk 0:02:34]}  exf4 {[%clk 0:02:15]} 8. gxf4 {[%clk 0:01:50]}  Ng4 {[%clk 0:02:15]} 9. Nf1 {[%clk 0:01:50]}  O-O {[%clk 0:01:28]} 10. h3 {[%clk 0:01:46]}  Bh4+ {[%clk 0:01:28]} 11. Nfg3 {[%clk 0:01:33]}  Ne3 {[%clk 0:01:26]} 12. Bxe3 {[%clk 0:01:33]}  dxe3 {[%clk 0:01:27]} 13. O-O {[%clk 0:01:26]}  Nd4 {[%clk 0:00:57]} 14. Kh2 {[%clk 0:01:26]}  c5 {[%clk 0:00:46]} 15. c3 {[%clk 0:01:25]}  Nc6 {[%clk 0:00:40]} 16. Rf3 {[%clk 0:01:20]}  Be6 {[%clk 0:00:29]} 17. Rxe3 {[%clk 0:01:12]}  Qb6 {[%clk 0:00:30]} 18. f5 {[%clk 0:00:54]}  Bd7 {[%clk 0:00:30]} 19. Nf4 {[%clk 0:00:50]}  Qxb2 {[%clk 0:00:20]} 20. Nd5 {[%clk 0:00:36]}  Ne5 {[%clk 0:00:15]} 21. d4 {[%clk 0:00:31]}  Nc4 {[%clk 0:00:14]} 22. Re2 {[%clk 0:00:31]}  Qb5 {[%clk 0:00:13]} 23. Rb1 {[%clk 0:00:25]}  Qc6 {[%clk 0:00:13]} 24. e5 {[%clk 0:00:24]}  Qh6 {[%clk 0:00:13]} 25. Rf2 {[%clk 0:00:06]}  Bc6 {[%clk 0:00:13]} 26. Qd3 {[%clk 0:00:05]}  Bxd5 {[%clk 0:00:11]} 27. Bxd5 {[%clk 0:00:06]}  Nb6 {[%clk 0:00:12]} 28. Bg2 {[%clk 0:00:05]}  cxd4 {[%clk 0:00:10]} 29. cxd4 {[%clk 0:00:05]}  Rad8 {[%clk 0:00:11]} 30. f6 {[%clk 0:00:06]}  g6 {[%clk 0:00:10]} 31. Rf3 {[%clk 0:00:05]}  Qg5 {[%clk 0:00:08]} 32. Ne4 {[%clk 0:00:05]}  Qh5 {[%clk 0:00:08]} 33. Rd1 {[%clk 0:00:04]}  Nd5 {[%clk 0:00:09]} 34. Nc5 {[%clk 0:00:04]}  Bg5 {[%clk 0:00:08]} 35. Qe4 {[%clk 0:00:04]}  Bf4+ {[%clk 0:00:07]} 36. Kh1 {[%clk 0:00:04]}  Nc3 {[%clk 0:00:05]} 37. Qxf4 {[%clk 0:00:03]}  Nxd1 {[%clk 0:00:06]} 38. e6 {[%clk 0:00:04]}  fxe6 {[%clk 0:00:02]} 39. Nxe6 {[%clk 0:00:04]}  Kf7 {[%clk 0:00:01]} 40. Nxd8+ {[%clk 0:00:04]}  Rxd8 {[%clk 0:00:00]} 41. Qc7+ {[%clk 0:00:04]} 1-0


[Site "https://www.chess.com"]

[Event "Titled Tuesday Blitz May 30 Early 2023"]
[White "Narayanan, Srinath"]
[Black "Sahib Singh"]
[WhiteFideId "5018420"]
[BlackFideId "25618342"]
[WhiteElo "2438"]
[BlackElo "1934"]
[Result "0-1"]
[Round "03"]
[TimeControl "180+2"]
[Date "2023.05.30"]
[WhiteClock "0:00:01"]
[BlackClock "0:00:02"]

1. Nf3 {[%clk 0:03:00]}  d5 {[%clk 0:02:59]} 2. e3 {[%clk 0:03:00]}  Nf6 {[%clk 0:02:54]} 3. c4 {[%clk 0:02:59]}  e6 {[%clk 0:02:53]} 4. Nc3 {[%clk 0:02:55]}  Be7 {[%clk 0:02:51]} 5. b3 {[%clk 0:02:56]}  O-O {[%clk 0:02:51]} 6. Bb2 {[%clk 0:02:56]}  b6 {[%clk 0:02:49]} 7. cxd5 {[%clk 0:02:55]}  exd5 {[%clk 0:02:49]} 8. Rc1 {[%clk 0:02:55]}  c5 {[%clk 0:02:49]} 9. d4 {[%clk 0:02:55]}  Bb7 {[%clk 0:02:49]} 10. g3 {[%clk 0:02:54]}  Nc6 {[%clk 0:02:46]} 11. Bg2 {[%clk 0:02:55]}  Ba6 {[%clk 0:02:46]} 12. Ne5 {[%clk 0:02:42]}  Rc8 {[%clk 0:02:03]} 13. Nxc6 {[%clk 0:02:35]}  Rxc6 {[%clk 0:02:03]} 14. dxc5 {[%clk 0:02:36]}  Bxc5 {[%clk 0:01:54]} 15. a3 {[%clk 0:02:28]}  Re8 {[%clk 0:01:11]} 16. Nxd5 {[%clk 0:01:38]}  Nxd5 {[%clk 0:01:06]} 17. Qxd5 {[%clk 0:01:39]}  Rd6 {[%clk 0:01:03]} 18. Qf3 {[%clk 0:00:38]}  Rd2 {[%clk 0:01:00]} 19. Rd1 {[%clk 0:00:38]}  Bxe3 {[%clk 0:00:59]} 20. fxe3 {[%clk 0:00:29]}  Rxe3+ {[%clk 0:00:58]} 21. Qxe3 {[%clk 0:00:29]}  Rxd1+ {[%clk 0:00:58]} 22. Kf2 {[%clk 0:00:30]}  Rd2+ {[%clk 0:00:59]} 23. Kg1 {[%clk 0:00:24]}  Rxb2 {[%clk 0:00:58]} 24. h4 {[%clk 0:00:25]}  Bb7 {[%clk 0:00:41]} 25. Rh2 {[%clk 0:00:19]}  Rb1+ {[%clk 0:00:32]} 26. Bf1 {[%clk 0:00:19]}  Ba6 {[%clk 0:00:26]} 27. Rf2 {[%clk 0:00:18]}  h6 {[%clk 0:00:21]} 28. Qf4 {[%clk 0:00:17]}  Qd5 {[%clk 0:00:11]} 29. b4 {[%clk 0:00:16]}  f6 {[%clk 0:00:09]} 30. Qe3 {[%clk 0:00:13]}  Bd3 {[%clk 0:00:09]} 31. Qd2 {[%clk 0:00:09]}  Qc4 {[%clk 0:00:08]} 32. Qe3 {[%clk 0:00:08]}  Bxf1 {[%clk 0:00:06]} 33. Kh2 {[%clk 0:00:08]}  Bd3 {[%clk 0:00:06]} 34. Rd2 {[%clk 0:00:03]}  Qc1 {[%clk 0:00:03]} 35. Kh3 {[%clk 0:00:01]}  Qh1+ {[%clk 0:00:02]} 36. Kg4 {[%clk 0:00:02]}  Bg6 {[%clk 0:00:01]} 37. Qf2 {[%clk 0:00:01]}  h5+ {[%clk 0:00:02]} 38. Kf4 {[%clk 0:00:01]}  Qe4# {[%clk 0:00:02]} 0-1


[Site "https://www.chess.com"]

[Event "Titled Tuesday Blitz May 30 Early 2023"]
[White "Rendle, Thomas E"]
[Black "Fridman, Daniel"]
[WhiteFideId "408760"]
[BlackFideId "11600454"]
[WhiteElo "2428"]
[BlackElo "2525"]
[Result "0-1"]
[Round "03"]
[TimeControl "180+2"]
[Date "2023.05.30"]
[WhiteClock "0:00:00"]
[BlackClock "0:00:13"]

1. Nf3 {[%clk 0:03:00]}  d5 {[%clk 0:02:58]} 2. b3 {[%clk 0:02:56]}  Bg4 {[%clk 0:02:57]} 3. Bb2 {[%clk 0:02:52]}  Bxf3 {[%clk 0:02:57]} 4. exf3 {[%clk 0:02:47]}  Nc6 {[%clk 0:02:58]} 5. f4 {[%clk 0:02:41]}  Qd6 {[%clk 0:02:57]} 6. g3 {[%clk 0:02:41]}  h5 {[%clk 0:02:52]} 7. Bg2 {[%clk 0:02:21]}  h4 {[%clk 0:02:49]} 8. Nc3 {[%clk 0:02:16]}  Nf6 {[%clk 0:02:45]} 9. Nb5 {[%clk 0:01:58]}  Qd7 {[%clk 0:02:41]} 10. Nd4 {[%clk 0:01:56]}  Nxd4 {[%clk 0:02:27]} 11. Bxd4 {[%clk 0:01:56]}  g6 {[%clk 0:02:28]} 12. Qe2 {[%clk 0:01:54]}  Bg7 {[%clk 0:02:26]} 13. O-O-O {[%clk 0:01:52]}  h3 {[%clk 0:02:23]} 14. Bf3 {[%clk 0:01:51]}  O-O {[%clk 0:02:20]} 15. Rhe1 {[%clk 0:01:48]}  e6 {[%clk 0:02:14]} 16. Qe3 {[%clk 0:01:36]}  b6 {[%clk 0:02:02]} 17. Be5 {[%clk 0:01:31]}  c5 {[%clk 0:01:55]} 18. d4 {[%clk 0:01:27]}  Rac8 {[%clk 0:01:51]} 19. dxc5 {[%clk 0:01:19]}  bxc5 {[%clk 0:01:50]} 20. g4 {[%clk 0:01:18]}  c4 {[%clk 0:01:45]} 21. Qd4 {[%clk 0:01:10]}  Qe7 {[%clk 0:01:33]} 22. f5 {[%clk 0:01:10]}  Qa3+ {[%clk 0:00:34]} 23. Kb1 {[%clk 0:01:04]}  c3 {[%clk 0:00:33]} 24. Qxc3 {[%clk 0:00:55]}  Rxc3 {[%clk 0:00:34]} 25. Bxc3 {[%clk 0:00:54]}  gxf5 {[%clk 0:00:32]} 26. gxf5 {[%clk 0:00:54]}  Kh7 {[%clk 0:00:29]} 27. Rd3 {[%clk 0:00:48]}  Rc8 {[%clk 0:00:23]} 28. Bb2 {[%clk 0:00:39]}  Qc5 {[%clk 0:00:23]} 29. Bd1 {[%clk 0:00:39]}  Qxf2 {[%clk 0:00:22]} 30. Rxh3+ {[%clk 0:00:37]}  Kg8 {[%clk 0:00:22]} 31. Rhe3 {[%clk 0:00:19]}  Ne4 {[%clk 0:00:21]} 32. fxe6 {[%clk 0:00:12]}  fxe6 {[%clk 0:00:17]} 33. Bxg7 {[%clk 0:00:08]}  Kxg7 {[%clk 0:00:18]} 34. Kb2 {[%clk 0:00:03]}  Qf6+ {[%clk 0:00:17]} 35. Ka3 {[%clk 0:00:01]}  Qf8+ {[%clk 0:00:15]} 36. Kb2 {[%clk 0:00:02]}  Qf6+ {[%clk 0:00:15]} 37. Ka3 {[%clk 0:00:02]}  Rc6 {[%clk 0:00:15]} 38. b4 {[%clk 0:00:00]}  Ra6+ {[%clk 0:00:13]} 0-1


[Site "https://www.chess.com"]

[Event "Titled Tuesday Blitz May 30 Early 2023"]
[White "Veiga, Jose Francisco R P Neves"]
[Black "Bjerre, Jonas Buhl"]
[WhiteFideId "1930087"]
[BlackFideId "1444948"]
[WhiteElo "2320"]
[BlackElo "2525"]
[Result "0-1"]
[Round "03"]
[TimeControl "180+2"]
[Date "2023.05.30"]
[WhiteClock "0:00:03"]
[BlackClock "0:00:29"]

1. d4 {[%clk 0:03:00]}  Nf6 {[%clk 0:02:58]} 2. Nf3 {[%clk 0:03:01]}  e6 {[%clk 0:02:58]} 3. Bf4 {[%clk 0:03:01]}  b6 {[%clk 0:02:56]} 4. e3 {[%clk 0:03:00]}  Bb7 {[%clk 0:02:56]} 5. Nbd2 {[%clk 0:02:58]}  d5 {[%clk 0:02:56]} 6. Bd3 {[%clk 0:02:57]}  Bd6 {[%clk 0:02:56]} 7. O-O {[%clk 0:02:55]}  O-O {[%clk 0:02:54]} 8. Qe2 {[%clk 0:02:52]}  Ne4 {[%clk 0:02:53]} 9. c3 {[%clk 0:02:39]}  Nd7 {[%clk 0:02:50]} 10. Ne5 {[%clk 0:02:37]}  Bxe5 {[%clk 0:02:43]} 11. dxe5 {[%clk 0:02:38]}  Ndc5 {[%clk 0:02:41]} 12. Nxe4 {[%clk 0:02:36]}  dxe4 {[%clk 0:02:37]} 13. Bc4 {[%clk 0:02:36]}  a5 {[%clk 0:02:16]} 14. Rfd1 {[%clk 0:02:34]}  Qc8 {[%clk 0:02:16]} 15. b4 {[%clk 0:02:22]}  axb4 {[%clk 0:02:09]} 16. cxb4 {[%clk 0:02:23]}  Na4 {[%clk 0:02:01]} 17. Qc2 {[%clk 0:02:19]}  c5 {[%clk 0:01:48]} 18. b5 {[%clk 0:02:11]}  Ra5 {[%clk 0:01:43]} 19. Bb3 {[%clk 0:01:58]}  Qa8 {[%clk 0:01:40]} 20. Rd7 {[%clk 0:01:58]}  Bd5 {[%clk 0:01:25]} 21. Rd1 {[%clk 0:01:57]}  c4 {[%clk 0:01:16]} 22. Bxc4 {[%clk 0:01:57]}  Bxc4 {[%clk 0:01:15]} 23. Qxc4 {[%clk 0:01:57]}  Nb2 {[%clk 0:01:16]} 24. Qb4 {[%clk 0:01:08]}  Nxd1 {[%clk 0:01:11]} 25. Rxd1 {[%clk 0:01:09]}  Rxa2 {[%clk 0:01:10]} 26. h4 {[%clk 0:01:07]}  Ra1 {[%clk 0:01:04]} 27. Rxa1 {[%clk 0:01:06]}  Qxa1+ {[%clk 0:01:05]} 28. Kh2 {[%clk 0:01:07]}  Qf1 {[%clk 0:00:59]} 29. Kg3 {[%clk 0:01:03]}  h6 {[%clk 0:00:57]} 30. h5 {[%clk 0:01:00]}  Rd8 {[%clk 0:00:54]} 31. Qxe4 {[%clk 0:00:09]}  Qxb5 {[%clk 0:00:52]} 32. Qb7 {[%clk 0:00:09]}  Qc5 {[%clk 0:00:46]} 33. Kh3 {[%clk 0:00:06]}  b5 {[%clk 0:00:44]} 34. Bg3 {[%clk 0:00:06]}  Qd5 {[%clk 0:00:41]} 35. Qc7 {[%clk 0:00:05]}  Qd7 {[%clk 0:00:39]} 36. Qb6 {[%clk 0:00:05]}  Rc8 {[%clk 0:00:37]} 37. Bf4 {[%clk 0:00:04]}  Qd5 {[%clk 0:00:33]} 38. f3 {[%clk 0:00:02]}  Qc4 {[%clk 0:00:32]} 39. Qb7 {[%clk 0:00:03]}  b4 {[%clk 0:00:31]} 40. Bg3 {[%clk 0:00:02]}  b3 {[%clk 0:00:31]} 41. Bf4 {[%clk 0:00:03]}  Qc2 {[%clk 0:00:30]} 42. e4 {[%clk 0:00:03]}  b2 {[%clk 0:00:30]} 43. Bxh6 {[%clk 0:00:03]}  b1=Q {[%clk 0:00:29]} 44. Qxb1 {[%clk 0:00:03]}  Qxb1 {[%clk 0:00:29]} 0-1


[Site "https://www.chess.com"]

[Event "Titled Tuesday Blitz May 30 Early 2023"]
[White "Williams, Simon K"]
[Black "Durarbayli, Vasif"]
[WhiteFideId "404454"]
[BlackFideId "13402935"]
[WhiteElo "2468"]
[BlackElo "2551"]
[Result "0-1"]
[Round "03"]
[TimeControl "180+2"]
[Date "2023.05.30"]
[WhiteClock "0:00:05"]
[BlackClock "0:00:40"]

1. d4 {[%clk 0:03:00]}  Nf6 {[%clk 0:02:58]} 2. c4 {[%clk 0:02:58]}  e6 {[%clk 0:02:58]} 3. Nf3 {[%clk 0:02:58]}  b6 {[%clk 0:02:59]} 4. g3 {[%clk 0:02:58]}  Bb7 {[%clk 0:02:59]} 5. Bg2 {[%clk 0:02:58]}  Bb4+ {[%clk 0:03:00]} 6. Nbd2 {[%clk 0:02:56]}  O-O {[%clk 0:02:58]} 7. O-O {[%clk 0:02:55]}  c5 {[%clk 0:02:58]} 8. d5 {[%clk 0:02:30]}  exd5 {[%clk 0:02:57]} 9. Nh4 {[%clk 0:02:30]}  Bxd2 {[%clk 0:02:48]} 10. Qxd2 {[%clk 0:02:06]}  Ne4 {[%clk 0:02:41]} 11. Qc2 {[%clk 0:02:01]}  Re8 {[%clk 0:02:27]} 12. cxd5 {[%clk 0:01:51]}  Bxd5 {[%clk 0:02:27]} 13. f3 {[%clk 0:01:33]}  Nf6 {[%clk 0:02:19]} 14. e4 {[%clk 0:01:32]}  Bb7 {[%clk 0:02:07]} 15. Bf4 {[%clk 0:01:16]}  d5 {[%clk 0:01:57]} 16. e5 {[%clk 0:01:09]}  Nfd7 {[%clk 0:01:57]} 17. Rfe1 {[%clk 0:00:39]}  Nc6 {[%clk 0:01:56]} 18. Qf5 {[%clk 0:00:34]}  g6 {[%clk 0:01:32]} 19. Qh3 {[%clk 0:00:32]}  Ndxe5 {[%clk 0:01:30]} 20. g4 {[%clk 0:00:23]}  Nd3 {[%clk 0:01:23]} 21. Rxe8+ {[%clk 0:00:21]}  Qxe8 {[%clk 0:01:24]} 22. Qg3 {[%clk 0:00:16]}  Nd4 {[%clk 0:01:23]} 23. Bf1 {[%clk 0:00:14]}  Ne2+ {[%clk 0:01:09]} 24. Bxe2 {[%clk 0:00:11]}  Qxe2 {[%clk 0:01:10]} 25. Rf1 {[%clk 0:00:10]}  d4 {[%clk 0:01:05]} 26. Bh6 {[%clk 0:00:10]}  Qe5 {[%clk 0:00:55]} 27. Qg2 {[%clk 0:00:06]}  Re8 {[%clk 0:00:50]} 28. Nf5 {[%clk 0:00:06]}  gxf5 {[%clk 0:00:41]} 29. gxf5+ {[%clk 0:00:06]}  Kh8 {[%clk 0:00:42]} 30. f4 {[%clk 0:00:05]}  Bxg2 {[%clk 0:00:40]} 0-1


[Site "https://www.chess.com"]